fUST/lending_fUST_20250126
["ID","MTS","AMOUNT","RATE_DAILY","PERIOD"]
[350467551,1737906633124,-500.0,0.00016437,2]
[350467553,1737906633135,-500.0,0.00016437,2]
[350467555,1737906633145,-500.0,0.00016437,2]
[350467557,1737906633155,-500.0,0.00016437,2]
[350467559,1737906633164,-500.0,0.00016437,2]
[350467561,1737906633175,-500.0,0.00016437,2]
[350467563,1737906633184,-500.0,0.00016437,2]
[350467565,1737906633194,-500.0,0.00016437,2]
[350467567,1737906633205,-500.0,0.00016437,2]
[350467569,1737906633215,-500.0,0.00016437,2]
[350467571,1737906633225,-500.0,0.00016437,2]
[350467573,1737906633237,-500.0,0.00016437,2]
[350467575,1737906633247,-500.0,0.00016437,2]
[350467577,1737906633257,-500.0,0.00016437,2]
[350467579,1737906633267,-500.0,0.00016437,2]
[350467581,1737906633277,-500.0,0.00016437,2]
[350467583,1737906633287,-500.0,0.00016437,2]
[350467585,1737906633297,-500.0,0.00016437,2]
[350467587,1737906633307,-500.0,0.00016437,2]
[350467589,1737906633317,-570.07493515,0.00016437,2]
[350467591,1737906633326,-500.0,0.00016437,2]
[350467593,1737906633335,-500.0,0.00016437,2]
[350467595,1737906633345,-500.0,0.00016437,2]
[350467596,1737906633354,-500.0,0.00016437,2]
[350467599,1737906633364,-500.0,0.00016437,2]
[350467601,1737906633374,-500.0,0.00016437,2]
[350467603,1737906633383,-500.0,0.00016437,2]
[350467604,1737906633393,-500.0,0.00016437,2]
[350467607,1737906633403,-500.0,0.00016437,2]
[350467609,1737906633413,-500.0,0.00016437,2]
[350467611,1737906633423,-500.0,0.00016437,2]
[350467613,1737906633433,-500.0,0.00016437,2]
[350467615,1737906633444,-500.0,0.00016437,2]
[350467617,1737906633454,-500.0,0.00016437,2]
[350467618,1737906633463,-500.0,0.00016437,2]
[350467620,1737906633473,-500.0,0.00016437,2]
[350467622,1737906633482,-361.40149869,0.00016437,2]
[350467624,1737906633492,-500.0,0.00016437,2]
[350467626,1737906633501,-500.0,0.00016437,2]
[350467628,1737906633511,-500.0,0.00016437,2]
[350467630,1737906633521,-500.0,0.00016437,2]
[350467632,1737906633531,-500.00000001,0.00016437,2]
[350467634,1737906633541,-500.0,0.00016437,2]
[350467636,1737906633551,-500.0,0.00016437,2]
[350467638,1737906633560,-484.33162695,0.00016437,2]
[350467640,1737906633570,-500.0,0.00016437,2]
[350467642,1737906633580,-500.0,0.00016437,2]
[350467644,1737906633589,-500.0,0.00016437,2]
[350467646,1737906633599,-151.0,0.00016438,2]
[350467648,1737906633610,-167.555153,0.00016438,2]
[350467650,1737906633621,-151.0,0.00016438,2]
[350467652,1737906633630,-500.0,0.00016438,2]
[350467654,1737906633640,-500.0,0.00016438,2]
[350467655,1737906633649,-500.0,0.00016438,2]
[350467657,1737906633659,-500.0,0.00016438,2]
[350467659,1737906633668,-500.0,0.00016438,2]
[350467661,1737906633677,-500.0,0.00016438,2]
[350467663,1737906633687,-542.34388917,0.00016438,2]
[350467665,1737906633699,-500.0,0.00016438,2]
[350467667,1737906633710,-598.24306704,0.00016438,2]
[350467669,1737906633720,-500.0,0.00016438,2]
[350467671,1737906633730,-500.0,0.00016438,2]
[350467673,1737906633740,-500.0,0.00016438,2]
[350467675,1737906633750,-312.03025294,0.00016438,2]
[350467677,1737906633759,-500.0,0.00016438,2]
[350467679,1737906633769,-500.0,0.00016438,2]
[350467681,1737906633778,-500.0,0.00016438,2]
[350467683,1737906633788,-623.6162765,0.00016438,2]
[350467685,1737906633798,-500.0,0.00016438,2]
[350467687,1737906633808,-500.74306221,0.00016438,2]
[350467689,1737906633818,-500.0,0.00016438,2]
[350467691,1737906633827,-500.0,0.00016438,2]
[350467693,1737906633837,-503.25247626,0.00016438,2]
[350467695,1737906633846,-500.0,0.00016438,2]
[350467697,1737906633856,-500.0,0.00016438,2]
[350467699,1737906633865,-500.0,0.00016438,2]
[350467701,1737906633875,-500.0,0.00016438,2]
[350467703,1737906633885,-414.51564704,0.00016438,2]
[350467705,1737906633896,-506.42845187,0.00016438,2]
[350467707,1737906634124,-500.0,0.00016438,2]
[350467709,1737906634135,-500.0,0.00016438,2]
[350467711,1737906634145,-500.0,0.00016438,2]
[350467713,1737906634155,-500.0,0.00016438,2]
[350467715,1737906634165,-500.0,0.00016438,2]
[350467716,1737906634177,-500.0,0.00016438,2]
[350467719,1737906634187,-500.0,0.00016438,2]
[350467721,1737906634197,-500.0,0.00016438,2]
[350467723,1737906634207,-500.0,0.00016438,2]
[350467725,1737906634217,-500.0,0.00016438,2]
[350467726,1737906634227,-500.0,0.00016438,2]
[350467729,1737906634238,-500.0,0.00016438,2]
[350467731,1737906634248,-500.0,0.00016438,2]
[350467732,1737906634258,-500.0,0.00016438,2]
[350467734,1737906634267,-502.62098657,0.00016438,2]
[350467736,1737906634277,-500.0,0.00016438,2]
[350467738,1737906634287,-215.08577923,0.00016438,2]
[350467740,1737906634297,-500.0,0.00016438,2]
[350467742,1737906634307,-500.0,0.00016438,2]
[350467744,1737906634316,-500.0,0.00016438,2]
[350467746,1737906634326,-500.0,0.00016438,2]
[350467748,1737906634335,-236.52116316,0.00016438,2]
[350467750,1737906634346,-500.0,0.00016438,2]
[350467752,1737906634355,-500.0,0.00016438,2]
[350467754,1737906634364,-501.29626383,0.00016438,2]
[350467756,1737906634374,-500.0,0.00016438,2]
[350467758,1737906634383,-500.0,0.00016438,2]
[350467760,1737906634393,-500.0,0.00016438,2]
[350467762,1737906634403,-500.0,0.00016438,2]
[350467764,1737906634413,-501.55387373,0.00016438,2]
[350467766,1737906634423,-500.0,0.00016438,2]
[350467768,1737906634432,-500.0,0.00016438,2]
[350467770,1737906634442,-500.0,0.00016438,2]
[350467772,1737906634451,-500.0,0.00016438,2]
[350467773,1737906634460,-500.0,0.00016438,2]
[350467775,1737906634471,-500.0,0.00016438,2]
[350467777,1737906634481,-310.00981694,0.00016438,2]
[350467779,1737906634491,-821.91,0.00016438,2]
[350467781,1737906634501,-500.0,0.00016438,2]
[350467783,1737906634511,-500.0,0.00016438,2]
[350467785,1737906634521,-633.53,0.00016438,2]
[350467787,1737906634530,-500.0,0.00016438,2]
[350467789,1737906634540,-500.0,0.00016438,2]
[350467791,1737906634549,-500.0,0.00016438,2]
[350467793,1737906634558,-500.0,0.00016438,2]
[350467795,1737906634568,-500.0,0.00016438,2]
[350467797,1737906634577,-500.0,0.00016438,2]
[350467799,1737906634587,-500.0,0.00016438,2]
[350467801,1737906634596,-500.0,0.00016438,2]
[350467803,1737906634606,-512.3112353,0.00016438,2]
[350467805,1737906634616,-500.0,0.00016438,2]
[350467807,1737906634625,-151.0,0.00016438,2]
[350467809,1737906634637,-151.0,0.00016438,2]
[350467811,1737906634647,-500.0,0.00016438,2]
[350467813,1737906634657,-500.0,0.00016438,2]
[350467815,1737906634666,-500.0,0.00016438,2]
[350467817,1737906634675,-500.0,0.00016438,2]
[350467819,1737906634685,-500.0,0.00016438,2]
[350467821,1737906634694,-500.0,0.00016438,2]
[350467823,1737906634703,-500.0,0.00016438,2]
[350467825,1737906634713,-201.98,0.00016438,2]
[350467827,1737906634722,-151.0,0.00016438,2]
[350467829,1737906634733,-500.0,0.00016438,2]
[350467831,1737906634742,-500.0,0.00016438,2]
[350467833,1737906634751,-151.0,0.00016438,2]
[350467835,1737906634761,-500.0,0.00016438,2]
[350467837,1737906634770,-500.0,0.00016438,2]
[350467839,1737906634779,-151.0,0.00016438,2]
[350467841,1737906634788,-500.0,0.00016438,2]
[350467843,1737906634797,-422.71756226,0.00016438,2]
[350467845,1737906634806,-500.0,0.00016438,2]
[350467847,1737906634815,-215.16305283,0.00016438,2]
[350467849,1737906634825,-500.0,0.00016438,2]
[350467864,1737906634834,-251.915739,0.00016438,2]
[350467867,1737906634969,-500.0,0.00016438,2]
[350467869,1737906634978,-151.0,0.00016438,2]
[350467871,1737906634988,-311.72,0.00016438,2]
[350467873,1737906634997,-500.0,0.00016438,2]
[350467875,1737906635007,-500.0,0.00016438,2]
[350467877,1737906635016,-284.40452603,0.00016438,2]
[350467879,1737906635025,-500.0,0.00016438,2]
[350467881,1737906635034,-156.575497,0.00016438,2]
[350467883,1737906635043,-500.0,0.00016438,2]
[350467885,1737906635052,-500.0,0.00016438,2]
[350467887,1737906635061,-500.0,0.00016438,2]
[350467889,1737906635071,-500.0,0.00016438,2]
[350467890,1737906635080,-500.0,0.00016438,2]
[350467892,1737906635089,-152.02272136,0.00016438,2]
[350467894,1737906635098,-500.0,0.00016438,2]
[350467897,1737906635108,-500.0,0.00016438,2]
[350467898,1737906635117,-500.0,0.00016438,2]
[350467900,1737906635127,-500.0,0.00016438,2]
[350467902,1737906635136,-500.26325349,0.00016438,2]
[350467904,1737906635146,-500.0,0.00016438,2]
[350467907,1737906635155,-500.0,0.00016438,2]
[350467909,1737906635164,-457.94030538,0.00016438,2]
[350467910,1737906635174,-382.83,0.00016438,2]
[350467912,1737906635183,-571.99,0.00016438,2]
[350467914,1737906635192,-500.0,0.00016438,2]
[350467917,1737906635202,-500.0,0.00016438,2]
[350467919,1737906635212,-500.0,0.00016438,2]
[350467920,1737906635220,-500.0,0.00016438,2]
[350467922,1737906635230,-508.30048779,0.00016438,2]
[350467924,1737906635240,-500.0,0.00016438,2]
[350467926,1737906635249,-500.0,0.00016438,2]
[350467928,1737906635259,-500.0,0.00016438,2]
[350467931,1737906635268,-500.0,0.00016438,2]
[350467932,1737906635278,-500.0,0.00016438,2]
[350467934,1737906635287,-500.0,0.00016438,2]
[350467936,1737906635296,-500.0,0.00016438,2]
[350467938,1737906635306,-151.0,0.00016438,2]
[350467941,1737906635315,-151.0,0.00016438,2]
[350467942,1737906635325,-500.0,0.00016438,2]
[350467944,1737906635335,-500.0,0.00016438,2]
[350467947,1737906635344,-500.0,0.00016438,2]
[350467949,1737906635355,-1565.53,0.00016438,2]
[350467951,1737906635364,-500.0,0.00016438,2]
[350467953,1737906635374,-501.95685216,0.00016438,2]
[350467955,1737906635382,-500.0,0.00016438,2]
[350467957,1737906635391,-500.0,0.00016438,2]
[350467959,1737906635400,-500.0,0.00016438,2]
[350467960,1737906635409,-500.0,0.00016438,2]
[350467963,1737906635419,-500.0,0.00016438,2]
[350467965,1737906635428,-500.0,0.00016438,2]
[350467966,1737906635437,-500.0,0.00016438,2]
[350467968,1737906635448,-500.0,0.00016438,2]
[350467971,1737906635457,-500.0,0.00016438,2]
[350467973,1737906635467,-500.0,0.00016438,2]
[350467975,1737906635476,-500.0,0.00016438,2]
[350467977,1737906635485,-1256.54,0.00016438,2]
[350467979,1737906635496,-856.39,0.00016438,2]
[350467980,1737906635506,-500.0,0.00016438,2]
[350467983,1737906635517,-500.0,0.00016438,2]
[350467984,1737906635526,-501.03632925,0.00016438,2]
[350467986,1737906635536,-500.0,0.00016438,2]
[350467988,1737906635544,-151.0,0.00016438,2]
[350467990,1737906635554,-501.16352778,0.00016438,2]
[350467992,1737906635563,-500.85086449,0.00016438,2]
[350467994,1737906635572,-501.52587954,0.00016438,2]
[350467996,1737906635582,-500.0,0.00016438,2]
[350467998,1737906635591,-500.0,0.00016438,2]
[350468000,1737906635601,-500.0,0.00016438,2]
[350468002,1737906635612,-501.8510563,0.00016438,2]
[350468004,1737906635623,-500.0,0.00016438,2]
[350468006,1737906635632,-500.0,0.00016438,2]
[350468008,1737906635641,-500.0,0.00016438,2]
[350468010,1737906635651,-2490.11,0.00016438,2]
[350468012,1737906635660,-500.0,0.00016438,2]
[350468014,1737906635670,-494.14944118,0.00016438,2]
[350468016,1737906635678,-500.0,0.00016438,2]
[350468017,1737906635688,-390.39197445,0.00016438,2]
[350468018,1737906635698,-4791.0,0.00016438,2]
[350468019,1737906635707,-500.0,0.00016438,2]
[350468020,1737906635716,-805.69,0.00016438,2]
[350468021,1737906635725,-354.74300017,0.00016438,2]
[350468022,1737906635735,-500.0,0.00016438,2]
[350468023,1737906635744,-745.4,0.00016438,2]
[350468024,1737906635753,-500.0,0.00016438,2]
[350468025,1737906635762,-151.0,0.00016438,2]
[350468026,1737906635771,-500.0,0.00016438,2]
[350468027,1737906635780,-500.0,0.00016438,2]
[350468028,1737906635789,-1175.63,0.00016438,2]
[350468029,1737906635798,-500.53527231,0.00016438,2]
[350468030,1737906635808,-500.0,0.00016438,2]
[350468031,1737906635817,-500.0,0.00016438,2]
[350468032,1737906635827,-151.0,0.00016438,2]
[350468033,1737906635835,-151.0,0.00016438,2]
[350468034,1737906635845,-644.91043256,0.00016438,2]
[350468035,1737906635854,-500.0,0.00016438,2]
[350468036,1737906635864,-500.0,0.00016438,2]
[350468037,1737906635873,-294.20253668,0.00016438,2]
[350468038,1737906635883,-500.0,0.00016438,2]
[350468039,1737906635891,-500.0,0.00016438,2]
[350468040,1737906635901,-500.90395749,0.00016438,2]
[350468041,1737906635910,-500.0,0.00016438,2]
[350468042,1737906635920,-213.76337527,0.00016438,2]
[350468043,1737906635929,-500.0,0.00016438,2]
[350468045,1737906635938,-272.66974408,0.00016438,2]
[350468047,1737906635947,-11380.62,0.00016438,2]
[350468049,1737906635957,-501.12207847,0.00016438,2]
[350468051,1737906635966,-501.14566722,0.00016438,2]
[350468053,1737906635976,-1121.55,0.00016438,2]
[350468055,1737906635986,-502.84628785,0.00016438,2]
[350468057,1737906635995,-500.0,0.00016438,2]
[350468059,1737906636005,-500.0,0.00016438,2]
[350468061,1737906636014,-2536.96,0.00016438,2]
[350468063,1737906636024,-500.0,0.00016438,2]
[350468065,1737906636033,-500.0,0.00016438,2]
[350468067,1737906636043,-500.0,0.00016438,2]
[350468069,1737906636052,-500.0,0.00016438,2]
[350468071,1737906636061,-424.78492448,0.00016438,2]
[350468073,1737906636071,-1095.82,0.00016438,2]
[350468075,1737906636081,-151.0,0.00016438,2]
[350468077,1737906636091,-500.0,0.00016438,2]
[350468079,1737906636101,-500.0,0.00016438,2]
[350468081,1737906636110,-500.0,0.00016438,2]
[350468083,1737906636119,-520.19320106,0.00016438,2]
[350468085,1737906636129,-500.0,0.00016438,2]
[350468087,1737906636138,-500.0,0.00016438,2]
[350468089,1737906636147,-508.18370372,0.00016438,2]
[350468091,1737906636157,-500.0,0.00016438,2]
[350468093,1737906636166,-500.0,0.00016438,2]
[350468095,1737906636175,-500.0,0.00016438,2]
[350468097,1737906636184,-500.0,0.00016438,2]
[350468099,1737906636193,-500.0,0.00016438,2]
[350468101,1737906636202,-500.0,0.00016438,2]
[350468103,1737906636211,-500.0,0.00016438,2]
[350468105,1737906636220,-1211.33,0.00016438,2]
[350468107,1737906636229,-3823.27673602,0.00016438,2]
[350468209,1737906638547,-745.99326398,0.00016438,2]
[350468210,1737906638557,-500.0,0.00016438,2]
[350468211,1737906638567,-500.0,0.00016438,2]
[350468212,1737906638576,-500.0,0.00016438,2]
[350468213,1737906638585,-500.0,0.00016438,2]
[350468214,1737906638594,-500.0,0.00016438,2]
[350468215,1737906638603,-502.08847184,0.00016438,2]
[350468216,1737906638616,-500.0,0.00016438,2]
[350468217,1737906638626,-500.0,0.00016438,2]
[350468218,1737906638635,-500.0,0.00016438,2]
[350468219,1737906638645,-500.0,0.00016438,2]
[350468220,1737906638655,-500.0,0.00016438,2]
[350468221,1737906638665,-500.0,0.00016473,2]
[350468222,1737906638674,-500.0,0.00016473,2]
[350468223,1737906638685,-500.30736033,0.00016473,2]
[350468224,1737906638701,-500.0,0.00016473,2]
[350468225,1737906638711,-151.0,0.00016473,2]
[350468226,1737906638720,-151.0,0.00016473,2]
[350468227,1737906638730,-151.0,0.00016473,2]
[350468228,1737906638741,-6302.42986811,0.00016475,2]
[350468229,1737906638751,-151.0,0.00016574,2]
[350468230,1737906638760,-151.0,0.00016575,2]
[350468231,1737906638770,-500.0,0.00016575,2]
[350468232,1737906638780,-500.0,0.00016575,2]
[350468233,1737906638790,-151.0,0.00016575,2]
[350468234,1737906638799,-151.0,0.00016575,2]
[350468235,1737906638809,-500.0,0.00016575,2]
[350468236,1737906638819,-399.203,0.00016575,2]
[350468237,1737906638828,-821.91,0.00016575,2]
[350468238,1737906638838,-500.0,0.00016575,2]
[350468239,1737906638848,-264.01,0.00016575,2]
[350468240,1737906638858,-500.0,0.00016575,2]
[350468241,1737906638868,-500.0,0.00016575,2]
[350468242,1737906638877,-500.0,0.00016575,2]
[350468243,1737906638887,-568.48766951,0.00016575,2]
[350468244,1737906638897,-151.0,0.00016575,2]
[350468245,1737906638907,-151.0,0.00016575,2]
[350468246,1737906638917,-151.0,0.00016575,2]
[350468247,1737906638927,-151.0,0.00016575,2]
[350468248,1737906638936,-500.0,0.00016575,2]
[350468249,1737906638946,-500.0,0.00016575,2]
[350468250,1737906638956,-500.0,0.00016575,2]
[350468251,1737906638966,-500.0,0.00016575,2]
[350468252,1737906638975,-500.0,0.00016575,2]
[350468253,1737906638985,-500.0,0.00016575,2]
[350468254,1737906638995,-151.0,0.00016575,2]
[350468255,1737906639005,-151.0,0.00016575,2]
[350468256,1737906639015,-522.06,0.00016575,2]
[350468257,1737906639025,-500.0,0.00016575,2]
[350468258,1737906639034,-255.15848127,0.00016575,2]
[350468259,1737906639044,-151.0,0.00016575,2]
[350468260,1737906639054,-500.0,0.00016575,2]
[350468261,1737906639064,-508.73116034,0.00016575,2]
[350468262,1737906639074,-500.0,0.00016575,2]
[350468263,1737906639084,-151.0,0.00016575,2]
[350468264,1737906639093,-159.4,0.00016575,2]
[350468265,1737906639103,-500.0,0.00016575,2]
[350468266,1737906639112,-500.0,0.00016575,2]
[350468267,1737906639122,-500.0,0.00016575,2]
[350468268,1737906639132,-500.0,0.00016575,2]
[350468269,1737906639141,-500.0,0.00016575,2]
[350468270,1737906639151,-500.0,0.00016575,2]
[350468271,1737906639161,-501.03035887,0.00016575,2]
[350468272,1737906639170,-500.0,0.00016575,2]
[350468273,1737906639180,-173.262944,0.00016575,2]
[350468274,1737906639190,-1565.53,0.00016575,2]
[350468275,1737906639200,-500.0,0.00016575,2]
[350468276,1737906639210,-1256.54,0.00016575,2]
[350468277,1737906639219,-856.39,0.00016575,2]
[350468278,1737906639229,-500.0,0.00016575,2]
[350468279,1737906639240,-151.0,0.00016575,2]
[350468280,1737906639250,-500.0,0.00016575,2]
[350468281,1737906639260,-2490.11,0.00016575,2]
[350468282,1737906639270,-4791.0,0.00016575,2]
[350468283,1737906639280,-805.69,0.00016575,2]
[350468284,1737906639290,-745.4,0.00016575,2]
[350468285,1737906639300,-151.0,0.00016575,2]
[350468286,1737906639310,-500.0,0.00016575,2]
[350468287,1737906639319,-1175.63,0.00016575,2]
[350468288,1737906639330,-500.0,0.00016575,2]
[350468289,1737906639340,-500.0,0.00016575,2]
[350468290,1737906639351,-151.0,0.00016575,2]
[350468291,1737906639361,-500.0,0.00016575,2]
[350468292,1737906639371,-500.0,0.00016575,2]
[350468293,1737906639381,-500.0,0.00016575,2]
[350468294,1737906639397,-500.0,0.00016575,2]
[350468295,1737906639408,-11380.62,0.00016575,2]
[350468296,1737906639419,-1121.55,0.00016575,2]
[350468297,1737906639428,-500.0,0.00016575,2]
[350468298,1737906639437,-2536.96,0.00016575,2]
[350468299,1737906639446,-500.0,0.00016575,2]
[350468300,1737906639455,-1095.82,0.00016575,2]
[350468301,1737906639464,-504.28223705,0.00016575,2]
[350468302,1737906639473,-500.0,0.00016575,2]
[350468303,1737906639483,-500.0,0.00016575,2]
[350468304,1737906639493,-500.0,0.00016575,2]
[350468305,1737906639502,-500.0,0.00016575,2]
[350468306,1737906639511,-1211.33,0.00016575,2]
[350468307,1737906639519,-4569.27,0.00016575,2]
[350468308,1737906639529,-500.0,0.00016575,2]
[350468309,1737906639538,-536.0,0.00016707,2]
[350468310,1737906639547,-2055.0,0.00016707,2]
[350468311,1737906639556,-2304.0,0.00016707,2]
[350468312,1737906639567,-150.0,0.00016707,2]
[350468313,1737906639576,-395.0,0.00016707,2]
[350468314,1737906639586,-151.0,0.00016712,2]
[350468315,1737906639595,-151.0,0.00016712,2]
[350468316,1737906639605,-500.0,0.00016712,2]
[350468317,1737906639618,-279.35726044,0.00016712,2]
[350468318,1737906639627,-151.0,0.00016712,2]
[350468319,1737906639636,-500.0,0.00016712,2]
[350468320,1737906639645,-821.91,0.00016712,2]
[350468321,1737906639655,-500.0,0.00016712,2]
[350468322,1737906639666,-500.0,0.00016712,2]
[350468323,1737906639675,-500.0,0.00016712,2]
[350468324,1737906639684,-151.0,0.00016712,2]
[350468325,1737906639693,-407.65145568,0.00016712,2]
[350468326,1737906639702,-500.0,0.00016712,2]
[350468327,1737906639711,-500.0,0.00016712,2]
[350468328,1737906639721,-500.0,0.00016712,2]
[350468329,1737906639731,-500.0,0.00016712,2]
[350468330,1737906639740,-500.0,0.00016712,2]
[350468331,1737906639749,-151.0,0.00016712,2]
[350468332,1737906639758,-151.0,0.00016712,2]
[350468333,1737906639768,-569.35227322,0.00016712,2]
[350468334,1737906639777,-151.0,0.00016712,2]
[350468336,1737906639788,-500.0,0.00016712,2]
[350468337,1737906639797,-500.0,0.00016712,2]
[350468339,1737906639807,-500.0,0.00016712,2]
[350468340,1737906639816,-272.88,0.00016712,2]
[350468341,1737906639826,-507.17491148,0.00016712,2]
[350468342,1737906639835,-500.0,0.00016712,2]
[350468343,1737906639845,-1565.53,0.00016712,2]
[350468344,1737906639855,-500.0,0.00016712,2]
[350468345,1737906639865,-1256.54,0.00016712,2]
[350468346,1737906639874,-856.39,0.00016712,2]
[350468347,1737906639884,-151.0,0.00016712,2]
[350468348,1737906639893,-2490.11,0.00016712,2]
[350468349,1737906639903,-4791.0,0.00016712,2]
[350468350,1737906639912,-805.69,0.00016712,2]
[350468351,1737906639921,-745.4,0.00016712,2]
[350468352,1737906639930,-151.0,0.00016712,2]
[350468353,1737906639939,-1175.63,0.00016712,2]
[350468354,1737906639949,-500.0,0.00016712,2]
[350468359,1737906639959,-500.0,0.00016712,2]
[350468360,1737906640082,-500.0,0.00016712,2]
[350468361,1737906640091,-500.0,0.00016712,2]
[350468362,1737906640101,-11380.62,0.00016712,2]
[350468363,1737906640111,-1121.55,0.00016712,2]
[350468364,1737906640120,-500.0,0.00016712,2]
[350468365,1737906640130,-2536.96,0.00016712,2]
[350468366,1737906640139,-500.0,0.00016712,2]
[350468367,1737906640149,-1095.82,0.00016712,2]
[350468368,1737906640159,-500.0,0.00016712,2]
[350468369,1737906640168,-500.0,0.00016712,2]
[350468370,1737906640178,-500.0,0.00016712,2]
[350468371,1737906640187,-500.0,0.00016712,2]
[350468372,1737906640196,-1211.33,0.00016712,2]
[350468373,1737906640205,-4569.27,0.00016712,2]
[350468374,1737906640216,-500.0,0.00016712,2]
[350468375,1737906640228,-1200.0,0.00016805,2]
[350468376,1737906640237,-151.0,0.00016849,2]
[350468377,1737906640247,-151.0,0.00016849,2]
[350468378,1737906640256,-151.0,0.00016849,2]
[350468379,1737906640265,-500.0,0.00016849,2]
[350468380,1737906640274,-151.0,0.00016849,2]
[350468381,1737906640283,-500.0,0.00016849,2]
[350468382,1737906640293,-821.91,0.00016849,2]
[350468383,1737906640303,-500.0,0.00016849,2]
[350468384,1737906640313,-472.16486793,0.00016849,2]
[350468385,1737906640322,-565.46,0.00016849,2]
[350468386,1737906640331,-151.0,0.00016849,2]
[350468388,1737906640340,-287.2006999,0.00016849,2]
[350468390,1737906640349,-500.0,0.00016849,2]
[350468392,1737906640359,-500.0,0.00016849,2]
[350468394,1737906640368,-151.0,0.00016849,2]
[350468395,1737906640377,-151.0,0.00016849,2]
[350468396,1737906640386,-500.0,0.00016849,2]
[350468397,1737906640396,-402.0,0.00016849,2]
[350468398,1737906640405,-500.0,0.00016849,2]
[350468399,1737906640415,-1565.53,0.00016849,2]
[350468401,1737906640424,-500.0,0.00016849,2]
[350468403,1737906640433,-1256.54,0.00016849,2]
[350468405,1737906640442,-856.39,0.00016849,2]
[350468406,1737906640451,-151.0,0.00016849,2]
[350468407,1737906640461,-2490.11,0.00016849,2]
[350468408,1737906640470,-4791.0,0.00016849,2]
[350468409,1737906640480,-805.69,0.00016849,2]
[350468410,1737906640489,-745.4,0.00016849,2]
[350468411,1737906640498,-151.0,0.00016849,2]
[350468412,1737906640507,-1175.63,0.00016849,2]
[350468413,1737906640517,-500.0,0.00016849,2]
[350468414,1737906640526,-500.0,0.00016849,2]
[350468415,1737906640535,-510.06454966,0.00016849,2]
[350468416,1737906640544,-627.6,0.00016849,2]
[350468417,1737906640553,-11380.62,0.00016849,2]
[350468418,1737906640563,-1121.55,0.00016849,2]
[350468419,1737906640572,-500.0,0.00016849,2]
[350468420,1737906640581,-2536.96,0.00016849,2]
[350468421,1737906640590,-500.0,0.00016849,2]
[350468422,1737906640598,-1095.82,0.00016849,2]
[350468423,1737906640607,-500.0,0.00016849,2]
[350468425,1737906640619,-500.0,0.00016849,2]
[350468427,1737906640628,-500.0,0.00016849,2]
[350468428,1737906640638,-500.0,0.00016849,2]
[350468429,1737906640647,-1211.33,0.00016849,2]
[350468430,1737906640657,-4569.27,0.00016849,2]
[350468431,1737906640666,-500.0,0.00016849,2]
[350468432,1737906640675,-201.04,0.00016874,2]
[350468433,1737906640684,-172.51,0.00016874,2]
[350468434,1737906640696,-225.02,0.00016957,2]
[350468435,1737906640705,-151.0,0.00016985,2]